bitfinex/quotes_ETHUSD_20240530
["timestamp","ask_amount","ask_price","bid_price","bid_amount"]
[1717084244257,0.55,3781.1,3779.9,1.78430152]
[1717084244431,0.55,3781.1,3779.9,1.84493341]
[1717084244953,0.55,3781.1,3780.4,2.64515]
[1717084245125,0.55,3781.3,3780.4,2.64515]
[1717084245332,0.55,3781.3,3780.5,0.06032069]
[1717084245675,2.964113,3781.2,3780.5,0.06032069]
[1717084245972,0.55,3781.1,3780.0,2.64545]
[1717084246172,0.55,3781.1,3780.6,0.06024032]
[1717084246318,0.55,3781.1,3780.0,2.64545]
[1717084246516,0.55,3781.1,3780.7,0.06018881]
[1717084246719,0.9014113,3781.1,3780.0,2.64545]
[1717084246940,0.9014113,3781.1,3780.8,0.0601373]
[1717084247146,0.55,3781.1,3779.8,3.0]
[1717084247415,2.64413,3782.0,3780.9,2.64483]
[1717084247618,2.64386,3782.4,3781.1,2.64468]
[1717084247874,0.57167342,3782.3,3781.2,35.0]
[1717084248017,0.57167342,3782.3,3781.2,35.05996222]
[1717084248213,0.57167342,3782.3,3781.3,0.05288377]
[1717084248419,2.64386,3782.4,3781.4,2.64452]
[1717084248661,2.64386,3782.4,3781.4,2.70437924]
[1717084248960,2.64386,3782.4,3781.5,35.0]
[1717084249473,2.64386,3782.4,3781.6,0.05956046]
[1717084250066,2.64386,3782.4,3781.4,2.64452]
[1717084250229,0.264386,3782.3,3781.7,0.05950898]
[1717084250633,0.55,3782.2,3781.4,2.64452]
[1717084250835,0.55,3782.2,3781.8,0.05919782]
[1717084251034,0.55,3782.2,3781.4,2.64452]
[1717084251232,0.55,3782.2,3781.9,0.05914635]
[1717084251435,0.8958246,3782.2,3781.4,2.64452]
[1717084251650,0.55,3782.2,3782.0,0.05909487]
[1717084251827,0.55,3782.3,3782.0,0.05909487]
[1717084252085,0.55,3782.3,3781.4,2.64452]
[1717084252363,0.55,3782.3,3782.1,0.0590434]
[1717084252563,0.38548645,3782.2,3781.3,0.62832769]
[1717084252780,3.19404,3782.1,3781.3,0.62832769]
[1717084254315,2.64428,3781.8,3781.3,0.62832769]
[1717084254521,0.55,3781.7,3781.3,0.62832769]
[1717084254763,2.64439,3781.6,3781.3,0.62832769]
[1717084254963,0.55,3781.5,3781.3,0.62832769]
[1717084255266,0.319439,3781.4,3780.6,3.27338769]
[1717084255459,0.55,3781.3,3780.6,3.27338769]
[1717084256566,0.55,3781.5,3780.6,3.27338769]
[1717084256768,2.64452,3781.4,3780.6,0.62832769]
[1717084257089,2.64469,3781.2,3780.6,0.62832769]
[1717084257261,0.319469,3781.1,3780.6,0.62832769]
[1717084257472,0.55,3781.0,3780.6,0.62832769]
[1717084259138,0.55,3781.0,3780.7,0.05993941]
[1717084262766,2.64487,3780.9,3780.7,0.05993941]
[1717084262923,3.55,3780.8,3780.7,0.05993941]
[1717084263125,4.396887,3780.8,3780.2,12.43]
[1717084263342,4.396887,3780.8,3780.7,0.06018675]
[1717084263545,4.396887,3780.8,3780.1,0.62832769]
[1717084263975,4.396887,3780.8,3780.2,0.06044433]
[1717084264689,2.64501,3780.7,3780.2,0.06044433]
[1717084264892,0.55,3780.6,3780.2,0.06044433]
[1717084265054,2.64516,3780.5,3780.2,0.06044433]
[1717084265393,2.64529,3780.3,3779.6,0.62832769]
[1717084265585,0.55,3780.2,3779.6,35.62832769]
[1717084265788,0.55,3780.2,3779.6,38.27393532]
[1717084265974,0.55,3780.2,3779.7,2.64571]
[1717084266143,0.55,3780.5,3779.7,2.64571]
[1717084268562,2.64392,3782.3,3779.6,38.27393532]
[1717084268563,2.64479,3781.1,3780.0,2.64548]
[1717084268887,2.64479,3781.1,3780.2,2.64532]
[1717084270055,2.64479,3781.1,3780.3,35.0]
[1717084270479,0.55,3781.0,3780.3,35.0]
[1717084270993,2.64452,3781.5,3780.4,2.6452]
[1717084271199,2.64452,3781.5,3780.6,2.64506]
[1717084271556,2.64452,3781.5,3780.7,35.0]
[1717084272651,0.55,3781.4,3780.7,35.0]
[1717084273082,0.55,3781.4,3780.8,0.05289251]
[1717084273275,2.6442,3781.9,3780.9,2.64486]
[1717084273653,2.6442,3781.9,3781.0,35.0]
[1717084273849,2.6442,3781.9,3781.0,35.06022192]
[1717084274109,0.41428316,3782.1,3781.1,2.64471]
[1717084274396,2.64392,3782.3,3781.3,2.64458]
[1717084274762,2.64392,3782.3,3781.4,35.06001594]
[1717084275409,0.55,3782.2,3781.4,35.06001594]
[1717084275725,0.55,3782.2,3781.5,2.64444]
[1717084276123,0.55,3782.2,3781.6,0.05991296]
[1717084276902,0.55,3782.5,3781.6,0.05991296]
[1717084278492,1.169363,3782.5,3781.6,0.05991296]
[1717084279433,0.55,3782.5,3781.6,0.05991296]
[1717084280334,2.64382,3782.4,3781.6,0.05991296]
[1717084280634,0.55,3782.3,3781.6,0.05991296]
[1717084282232,0.06610525,3782.2,3781.6,0.05991296]
[1717084282535,2.6442,3781.9,3781.3,0.62832769]
[1717084282742,0.55,3781.8,3781.7,0.05948021]
[1717084282906,0.55,3781.8,3780.9,12.43]
[1717084283236,0.55,3781.8,3780.8,0.62832769]
[1717084283533,0.55,3781.8,3781.0,0.05945519]
[1717084283734,0.31942,3781.7,3780.9,0.0595067]
[1717084283941,0.31942,3781.7,3780.8,0.62832769]
[1717084283942,3.19439,3781.6,3780.8,0.62832769]
[1717084284294,3.19439,3781.6,3780.9,0.05960766]
[1717084284639,3.19439,3781.6,3780.8,0.62832769]
[1717084284799,0.351381,3781.5,3780.8,0.62832769]
[1717084285001,0.55,3781.4,3781.0,0.05955616]
[1717084285241,0.55,3781.4,3780.9,0.05960766]
[1717084285447,0.55,3781.4,3780.8,0.62832769]
[1717084285596,0.55,3781.4,3781.0,0.05955616]
[1717084285797,0.55,3781.4,3780.8,0.62832769]
[1717084286340,2.64461,3781.3,3780.9,0.05960766]
[1717084286729,2.64473,3781.1,3780.9,0.05960766]
[1717084286945,0.55,3781.0,3780.9,0.05960766]
[1717084287106,2.64488,3780.9,3780.3,0.62832769]
[1717084287438,0.55,3780.8,3780.3,0.62832769]
[1717084288910,0.869488,3780.8,3780.4,0.05986521]
[1717084289314,2.64502,3780.7,3780.4,0.05986521]
[1717084289516,0.55,3780.6,3780.4,0.05986521]
[1717084292230,0.55,3780.6,3780.0,35.0]
[1717084292649,0.55,3780.6,3780.5,0.06012283]
[1717084292850,0.55,3780.6,3780.0,35.0]
[1717084293157,0.55,3780.6,3780.5,0.06012283]
[1717084293353,0.55,3780.6,3780.0,35.0]
[1717084293747,0.55,3780.6,3780.1,0.06032891]
[1717084294120,0.55,3780.6,3779.9,2.64552]
[1717084294424,0.55,3780.6,3780.0,35.0]
[1717084294619,0.55,3780.6,3780.1,0.06032891]
[1717084295066,0.55,3780.6,3779.9,2.64552]
[1717084295233,0.55,3780.6,3780.2,0.06027739]
[1717084295433,0.55,3780.6,3780.0,35.0]
[1717084295636,0.55,3780.6,3780.3,0.06022586]
[1717084295829,2.7112818,3780.5,3779.7,0.62832769]
[1717084296033,0.55,3780.4,3779.7,0.62832769]
[1717084296265,3.55,3780.4,3779.7,0.62832769]
[1717084296418,0.55,3780.4,3779.7,0.62832769]
[1717084296624,0.55,3780.5,3779.7,0.62832769]
[1717084296965,2.64536,3780.2,3779.7,0.62832769]
[1717084297121,2.64551,3780.0,3779.7,0.62832769]
[1717084297322,0.55,3779.9,3779.7,0.62832769]
[1717084297755,2.64564,3779.8,3778.8,0.62832769]
[1717084297944,0.55,3779.7,3778.8,0.62832769]
[1717084299144,2.64583,3779.6,3778.8,0.62832769]
[1717084299350,0.55,3779.5,3778.8,0.62832769]
[1717084303677,2.64594,3779.4,3778.5,12.43]
[1717084303845,0.55,3779.3,3778.9,0.06170214]
[1717084304042,0.55,3779.3,3778.5,14.05037719]
[1717084304242,0.55,3779.3,3779.0,0.06166297]
[1717084304456,0.55,3779.3,3778.6,2.64648]
[1717084304695,0.55,3779.3,3779.1,0.06159284]
[1717084304843,0.55,3779.3,3778.6,2.64648]
[1717084305042,0.55,3779.3,3779.2,0.06154129]
[1717084305243,0.55,3779.3,3778.6,4.42887591]
[1717084305451,0.55,3779.3,3779.2,0.06154129]
[1717084305639,0.55,3779.3,3778.6,4.42887591]
[1717084305864,0.55,3779.3,3778.7,0.06179907]
[1717084307589,2.64607,3779.2,3778.7,0.06179907]
[1717084307800,0.55,3779.1,3778.7,0.06179907]
[1717084307938,0.55,3779.1,3778.5,12.43]
[1717084308442,0.55,3779.1,3778.6,0.0618362]
[1717084309888,0.55,3779.1,3778.4,0.62832769]
[1717084310072,0.55,3779.1,3778.5,0.06196203]
[1717084311588,0.55,3779.1,3778.5,0.395662]
[1717084313489,0.55,3779.1,3778.5,0.06196203]
[1717084318590,2.64625,3779.0,3778.5,0.06196203]
[1717084318887,0.55,3778.9,3778.5,0.06196203]
[1717084319047,0.55,3778.9,3778.2,2.64671]
[1717084319550,0.55,3778.9,3778.3,0.06208581]
[1717084322310,0.55,3778.9,3778.3,0.39579816]
[1717084323186,0.55,3778.9,3778.4,2.64661]
[1717084323606,0.55,3778.9,3778.5,0.0619971]
[1717084324921,0.55,3779.1,3778.5,0.0619971]
[1717084325790,2.6462,3779.0,3778.5,0.0619971]
[1717084325980,0.55,3778.9,3778.5,0.0619971]
[1717084326193,0.55,3778.9,3778.0,3.27515769]
[1717084326393,0.55,3778.9,3778.6,0.0619868]
[1717084326578,0.55,3778.9,3778.1,1.57051577]
[1717084326780,0.55,3778.9,3778.7,0.06193523]
[1717084327012,0.55,3778.9,3778.1,1.57051577]
[1717084327497,0.55,3778.9,3778.2,0.06219308]
[1717084327665,0.55,3778.9,3778.2,0.55297973]
[1717084329395,0.55,3778.9,3778.2,3.19966973]
[1717084329604,0.55,3778.9,3778.4,2.6466]
[1717084329993,0.55,3778.9,3778.5,0.06203836]
[1717084330179,0.55,3779.2,3778.5,0.06203836]
[1717084330381,0.55,3779.2,3778.5,0.45388086]
[1717084330906,0.55,3779.2,3778.6,2.64648]
[1717084331104,2.64557,3779.9,3779.1,0.719]
[1717084331293,2.64557,3779.9,3779.2,0.06164443]
[1717084331294,0.5720443,3779.8,3779.2,0.06164443]
[1717084331498,2.64557,3779.9,3779.2,0.06164443]
[1717084332011,2.64557,3779.9,3779.1,0.719]
[1717084332393,3.0,3780.3,3779.2,0.06154334]
[1717084332394,2.64573,3779.7,3779.2,0.06154334]
[1717084332623,0.55,3779.6,3779.2,0.06154334]
[1717084332924,0.55,3779.6,3779.3,0.06143609]
[1717084333131,0.55,3779.6,3778.8,0.62832769]
[1717084333281,0.55,3779.6,3778.9,0.38911507]
[1717084333680,2.64587,3779.5,3778.9,0.0616423]
[1717084333930,2.64602,3779.3,3778.9,0.0616423]
[1717084334100,2.64613,3779.1,3778.9,0.0616423]
[1717084334293,2.6463,3778.9,3778.2,0.62832769]
[1717084334633,2.6463,3778.9,3778.3,0.06197026]
[1717084334996,0.55,3778.8,3778.3,0.06197026]
[1717084337522,2.64641,3778.7,3778.3,0.06197026]
[1717084337822,2.64655,3778.5,3778.3,0.06197026]
[1717084338124,0.319655,3778.4,3777.8,13.05832769]
[1717084338324,0.55,3778.3,3777.9,0.06237878]
[1717084338618,0.55,3778.3,3777.4,0.62832769]
[1717084338822,2.6467,3778.3,3778.0,0.0623272]
[1717084339122,0.55,3778.4,3777.4,0.62832769]
[1717084339123,2.64684,3778.1,3777.4,0.62832769]
[1717084339618,0.55,3778.0,3777.4,0.62832769]
[1717084341421,0.55,3778.0,3777.4,0.95589346]
[1717084341625,0.55,3778.0,3777.4,0.32756577]
[1717084341824,0.55,3778.0,3777.5,2.6472]
[1717084343108,0.55,3778.0,3777.8,2.64702]
[1717084343615,2.64604,3779.3,3777.8,2.64702]
[1717084343788,0.264604,3779.2,3778.1,2.64677]
[1717084344391,0.264604,3779.2,3777.9,0.264702]
[1717084344392,2.64604,3779.3,3778.4,2.6466]
[1717084344817,2.64574,3779.7,3778.7,2.64637]
[1717084345000,2.64546,3780.1,3778.9,2.64624]
[1717084345207,2.64546,3780.1,3779.2,2.64604]
[1717084345405,0.264546,3780.0,3779.2,2.64604]
[1717084345606,0.41450662,3780.4,3779.5,2.64583]
[1717084345826,0.57193846,3780.4,3779.5,2.64583]
[1717084346003,2.6452,3780.5,3779.5,2.64583]
[1717084347032,0.06614107,3780.4,3779.5,2.64583]
[1717084347351,4.3702,3780.5,3779.5,2.64583]
[1717084347510,0.43702,3780.4,3779.5,2.64583]
[1717084347920,0.06614043,3780.3,3779.5,2.64583]
[1717084348253,0.55,3780.2,3779.5,2.64583]
[1717084348431,0.55,3780.3,3779.5,2.64583]
[1717084348800,0.55,3780.4,3779.5,2.910413]
[1717084349146,5.64492,3780.9,3779.8,2.64562]
[1717084349445,5.64492,3780.9,3779.9,0.06131058]
[1717084349648,2.64461,3781.3,3780.0,2.64548]
[1717084349831,0.305905,3781.2,3780.0,2.64548]
[1717084350020,0.305905,3781.2,3780.2,2.64535]
[1717084350552,0.305905,3781.2,3780.4,2.6452]
[1717084350694,2.64434,3781.7,3780.3,0.06110448]
[1717084350695,2.64434,3781.7,3780.6,2.64502]
[1717084350900,2.64434,3781.7,3780.7,0.06027541]
[1717084351382,0.41431848,3781.9,3780.8,2.64493]
[1717084351829,0.41431848,3781.9,3780.9,0.06016621]
[1717084352728,0.55,3781.8,3780.9,0.06016621]
[1717084352931,0.39643185,3781.7,3780.9,0.06016621]
[1717084353128,0.55,3781.6,3780.9,0.06016621]
[1717084354437,0.41431848,3781.9,3781.0,2.64479]
[1717084354662,2.64271,3784.0,3781.3,2.64452]
[1717084354663,2.64375,3782.6,3781.3,2.64452]
[1717084354810,3.05800628,3782.6,3781.3,2.64452]
[1717084355772,3.05800628,3782.6,3781.2,0.62832769]
[1717084356059,0.41425628,3782.6,3781.2,0.62832769]
[1717084356270,0.41425628,3782.6,3781.3,0.23533277]
[1717084356412,0.41425628,3782.6,3781.3,0.2951693]
[1717084357961,3.0,3782.9,3782.0,2.64408]
[1717084358165,3.0,3782.9,3782.1,0.05942467]
[1717084358461,0.55,3782.8,3782.1,0.05942467]
[1717084358658,0.55,3783.1,3782.1,0.05942467]
[1717084364068,3.19334,3783.1,3782.1,0.05942467]
[1717084364225,3.0,3783.0,3782.1,0.05942467]
[1717084364429,0.55,3782.9,3782.1,0.05942467]
[1717084364635,0.619334,3782.8,3782.1,0.05942467]
[1717084364841,0.55,3782.7,3782.1,0.05942467]
[1717084368354,0.55,3782.7,3781.9,0.62832769]
[1717084368687,0.55,3782.7,3782.0,0.05508069]
[1717084369191,2.6437,3782.6,3782.0,0.05508069]
[1717084369496,2.64385,3782.4,3782.0,0.05508069]
[1717084369673,3.86937,3782.5,3782.0,0.05508069]
[1717084369674,2.64396,3782.2,3782.0,0.05508069]
[1717084369873,0.55,3782.1,3781.9,0.62832769]
[1717084370098,0.55,3782.1,3781.2,3.27295769]
[1717084370247,2.963506,3782.0,3781.2,3.27295769]
[1717084370452,0.55,3781.9,3781.3,0.05544107]
[1717084379188,0.55,3781.9,3781.4,35.0]
[1717084379385,0.55,3781.9,3781.5,0.05562994]
[1717084379591,0.55,3781.9,3781.2,0.62832769]
[1717084379808,0.55,3781.9,3781.3,0.05573292]
[1717084380192,0.55,3781.9,3781.3,5.29016763]
[1717084380405,0.55,3781.9,3781.5,2.64441]
[1717084380625,3.0,3782.5,3781.5,2.64441]
[1717084380811,3.0,3782.7,3781.6,35.05557846]
[1717084381026,3.0,3782.7,3781.6,37.70118609]
[1717084381187,2.64369,3782.6,3781.6,37.70118609]
[1717084381384,3.0,3782.5,3781.6,37.70118609]
[1717084381690,3.0,3782.5,3781.7,2.6443]
[1717084381929,0.55,3782.4,3781.7,2.6443]
[1717084382092,0.55,3782.4,3781.8,1.5273432]
[1717084382632,0.55,3782.4,3781.8,0.0554755]
[1717084382804,2.64391,3782.3,3781.8,0.0554755]
[1717084383131,2.64391,3782.3,3781.9,0.05542402]
[1717084383132,0.55,3782.2,3781.9,0.05542402]
[1717084383349,0.55,3782.2,3781.3,2.64454]
[1717084383547,0.55,3782.2,3781.4,0.05568143]
[1717084384708,2.64404,3782.1,3781.4,0.05568143]
[1717084384898,0.55,3782.0,3780.9,2.64483]
[1717084385094,0.55,3782.0,3781.0,0.05588741]
[1717084386013,2.6442,3781.9,3781.0,0.05588741]
[1717084386228,0.55,3781.8,3781.0,0.38879192]
[1717084388527,0.55,3781.8,3781.1,35.0]
[1717084388732,0.55,3781.8,3781.2,0.05574742]
[1717084389632,0.55,3781.8,3781.0,0.33290451]
[1717084389936,0.55,3781.8,3781.0,35.33290451]
[1717084390098,0.55,3781.8,3781.1,0.05577425]
[1717084390937,0.55,3781.8,3781.1,2.70138188]
[1717084391298,0.55,3781.8,3781.1,0.05577425]
[1717084391299,2.71044666,3781.7,3781.1,0.05577425]
[1717084391633,2.64434,3781.7,3780.8,0.62832769]
[1717084391820,0.55,3781.6,3781.2,0.05573919]
[1717084392025,0.55,3781.6,3780.9,35.0]
[1717084392338,2.64445,3781.5,3780.9,35.0]
[1717084392536,0.55,3781.4,3781.0,0.05584219]
[1717084394708,0.55,3781.4,3781.1,35.0]
[1717084394920,0.55,3781.4,3781.1,35.05579069]
[1717084395437,2.64459,3781.3,3781.1,0.05579069]
[1717084395736,0.55,3781.2,3781.1,0.05579069]
[1717084396039,0.55,3781.2,3780.9,35.0]
[1717084397343,2.64473,3781.1,3780.9,35.0]
[1717084397650,0.55,3781.2,3780.5,2.64512]
[1717084397651,0.55,3781.0,3780.5,2.64512]
[1717084397823,0.55,3781.2,3780.6,1.57034477]
[1717084398141,0.55,3781.4,3780.7,35.0]
[1717084399009,3.0,3781.9,3780.8,2.64494]
[1717084399010,5.64423,3781.9,3780.8,2.64494]
[1717084399306,2.64423,3781.9,3781.0,2.64473]
[1717084399735,2.64423,3781.9,3781.2,2.64465]
[1717084400432,0.55,3781.8,3781.2,2.64465]
[1717084400751,0.55,3782.1,3781.3,35.0]
[1717084401752,2.64413,3782.0,3781.3,35.0]
[1717084401949,0.55,3781.9,3781.3,35.0]
[1717084407858,0.55,3781.9,3781.2,2.64465]
[1717084408426,0.55,3781.9,3781.2,37.64465]
[1717084408934,0.55,3781.9,3781.3,0.05563426]
[1717084410330,0.55,3781.9,3781.4,0.27002843]
[1717084410626,0.55,3781.9,3781.5,0.05364015]
[1717084410846,0.55,3781.9,3781.5,2.69808015]
[1717084413237,0.55,3781.9,3781.7,2.64424]
[1717084413438,3.05748782,3783.2,3782.0,2.64407]
[1717084413616,0.57152115,3783.1,3782.1,0.264407]
[1717084413820,2.64333,3783.2,3782.2,0.05324076]
[1717084414027,2.64333,3783.2,3782.3,2.64389]
[1717084414230,2.64333,3783.2,3782.4,0.05287024]
[1717084414434,2.64333,3783.2,3782.4,0.10600807]
[1717084414981,2.64333,3783.2,3782.4,0.05313783]
[1717084415337,0.55,3783.1,3782.4,0.05313783]
[1717084417443,0.55,3783.1,3782.4,0.34928131]
[1717084418380,0.55,3783.1,3782.5,2.64375]
[1717084418733,0.55,3783.1,3782.6,0.05296093]
[1717084419182,0.55,3783.1,3782.7,2.64361]
[1717084419347,5.64301,3783.6,3782.8,0.05265666]
[1717084420485,2.64301,3783.6,3782.8,0.38511609]
[1717084420631,0.55,3783.5,3782.8,0.38511609]
[1717084422261,0.55,3783.5,3782.9,2.64347]
[1717084422741,0.55,3783.5,3783.0,0.05244076]
[1717084422937,0.55,3783.5,3783.0,0.35527778]
[1717084425344,0.55,3783.5,3783.0,0.35527778]
[1717084426851,0.55,3783.5,3783.1,2.64329]
[1717084427364,0.55,3783.5,3783.2,0.05219616]
[1717084434756,0.55,3783.8,3783.2,0.05219616]
[1717084442459,0.717,3783.7,3783.2,0.05219616]
[1717084442763,0.717,3783.4,3783.2,0.05219616]
[1717084442933,3.584191,3783.3,3783.2,0.05219616]
[1717084443114,3.19319,3783.3,3782.6,2.64366]
[1717084443319,0.717,3783.2,3782.6,2.64366]
[1717084443556,0.55,3783.1,3782.6,2.64366]
[1717084444058,0.55,3783.2,3782.6,2.64366]
[1717084445229,0.55,3783.2,3782.6,3.04255877]
[1717084446266,0.55,3783.3,3782.6,3.04255877]
[1717084447798,3.35976,3784.0,3783.1,0.717]
[1717084447965,3.0,3783.9,3783.0,2.64337]
[1717084448171,3.35986,3783.8,3783.0,2.64337]
[1717084448830,0.55,3783.7,3783.0,2.64337]
[1717084449032,0.55,3783.7,3782.5,0.62832769]
[1717084449033,0.717,3783.1,3782.5,0.62832769]
[1717084449240,0.717,3782.9,3782.6,0.05062479]
[1717084449534,0.55,3782.8,3782.6,0.05062479]
[1717084449941,0.55,3783.0,3782.6,0.05062479]
[1717084450168,0.717,3782.9,3782.1,12.43]
[1717084450369,0.55,3782.8,3782.7,0.05057333]
[1717084450871,0.55,3783.0,3782.2,2.64391]
[1717084451175,0.55,3783.0,3782.7,0.05057333]
[1717084451355,2.64347,3782.9,3782.2,2.64391]
[1717084451578,2.64347,3782.9,3782.1,12.43]
[1717084451579,2.70956124,3782.9,3782.8,0.05052188]
[1717084451888,3.25956124,3782.9,3782.1,12.43]
[1717084452201,0.55,3782.8,3782.1,12.43]
[1717084452505,0.55,3782.8,3782.2,0.05083064]
[1717084453352,0.55,3782.8,3782.0,0.62832769]
[1717084453553,0.55,3782.8,3782.3,0.0509144]
[1717084453788,0.55,3782.8,3782.0,0.95557646]
[1717084453969,2.7097125,3782.7,3782.4,0.05086294]
[1717084454165,2.64383,3782.4,3781.6,0.62832769]
[1717084454390,0.55,3782.3,3781.6,0.62832769]
[1717084454554,0.55,3782.3,3781.7,0.05122325]
[1717084454756,2.64397,3782.2,3781.7,0.05122325]
[1717084454988,2.64411,3782.0,3781.7,0.05122325]
[1717084455165,0.55,3781.9,3781.6,0.62832769]
[1717084455602,0.55,3781.9,3781.8,0.05117176]
[1717084455802,2.64424,3781.8,3781.7,0.05122325]
[1717084456007,3.19424,3781.8,3780.8,0.62832769]
[1717084456156,2.64438,3781.6,3780.8,0.62832769]
[1717084456362,0.55,3781.5,3780.8,0.62832769]
[1717084456656,0.61611715,3781.5,3780.8,0.62832769]
[1717084456863,2.64455,3781.4,3780.8,0.62832769]
[1717084457176,0.55,3781.3,3780.8,0.62832769]
[1717084461165,2.64424,3781.8,3780.8,0.62832769]
[1717084461462,2.64424,3781.8,3780.9,2.97216377]
[1717084461662,2.64398,3782.2,3780.9,2.97216377]
[1717084461860,3.0,3782.1,3780.9,2.97216377]
[1717084462453,0.55,3782.0,3780.9,2.97216377]
[1717084462658,3.0,3782.1,3780.9,2.97216377]
[1717084462884,3.0,3782.1,3781.0,0.53234915]
[1717084463084,2.71020439,3782.0,3781.0,0.53234915]
[1717084463280,2.71020439,3782.0,3780.9,2.97216377]
[1717084463484,2.71020439,3782.0,3780.9,2.64483]
[1717084463485,2.6441,3782.0,3780.9,2.64483]
[1717084463899,2.64426,3781.8,3780.9,2.64483]
[1717084464122,0.55,3781.7,3780.9,2.64483]
[1717084464308,2.64439,3781.6,3780.8,0.62832769]
[1717084464547,0.55,3781.5,3780.8,0.62832769]
[1717084464755,2.64453,3781.4,3780.8,0.62832769]
[1717084465028,0.55,3781.3,3780.8,0.62832769]
[1717084465484,2.71078259,3781.2,3780.8,0.62832769]
[1717084465683,2.6448,3781.0,3780.8,0.62832769]
[1717084465915,2.64499,3780.8,3780.0,0.62832769]
[1717084466325,2.6451,3780.6,3780.0,0.62832769]
[1717084466533,0.55,3780.5,3780.0,0.62832769]
[1717084467319,2.64523,3780.4,3780.0,0.62832769]
[1717084467644,0.55,3780.3,3780.0,0.62832769]
[1717084467819,0.924523,3780.3,3780.0,0.62832769]
[1717084467992,2.64536,3780.2,3780.0,0.62832769]
[1717084468189,0.55,3780.1,3780.0,0.62832769]
[1717084468492,0.55,3780.1,3779.1,0.62832769]
[1717084468902,0.55,3780.1,3779.2,0.05308925]
[1717084469486,0.55,3780.1,3779.2,0.38585694]
[1717084470827,0.55,3780.1,3779.3,2.64596]
[1717084471164,0.55,3780.1,3779.4,0.05320158]
[1717084471521,0.55,3780.4,3779.4,0.05320158]
[1717084472422,2.64533,3780.3,3779.4,0.05320158]
[1717084472755,1.169533,3780.2,3779.4,0.05320158]
[1717084473164,2.64544,3780.1,3779.4,0.05320158]
[1717084473336,0.55,3780.0,3779.4,0.05320158]
[1717084473842,0.55,3780.0,3779.1,0.62832769]
[1717084474043,0.55,3780.0,3779.2,0.05324722]
[1717084474364,2.64557,3779.9,3779.2,0.05324722]
[1717084474531,0.55,3779.8,3779.2,0.05324722]
[1717084478044,2.64573,3779.7,3779.2,0.05324722]
[1717084478321,0.55,3779.6,3779.2,0.05324722]
[1717084479118,2.64586,3779.5,3779.2,0.05324722]
[1717084479337,0.55,3779.4,3779.2,0.05324722]
[1717084479680,0.55,3779.4,3778.5,0.62832769]
[1717084479886,0.55,3779.4,3778.6,0.38153671]
[1717084480532,3.55,3779.4,3778.6,0.38153671]
[1717084482348,2.646,3779.3,3778.6,0.05404694]
[1717084482528,0.55,3779.2,3778.6,0.05404694]
[1717084486136,2.64613,3779.1,3778.6,0.05404694]
[1717084486351,0.55,3779.0,3778.6,0.05404694]
[1717084487034,2.64628,3778.9,3778.6,0.05404694]
[1717084487216,0.55,3778.8,3778.6,0.05404694]
[1717084488939,0.55,3778.8,3778.7,0.05417194]
[1717084489293,0.55,3778.8,3778.3,35.0]
[1717084489496,0.55,3778.8,3778.4,0.05432664]
[1717084491609,0.55,3778.9,3778.4,0.05432664]
[1717084491795,0.55,3778.9,3778.2,2.64669]
[1717084492136,0.55,3778.9,3778.3,35.0]
[1717084492309,0.55,3778.9,3778.3,35.05458352]
[1717084496138,2.64636,3778.8,3778.3,35.05458352]
[1717084496373,0.55,3778.7,3778.3,35.05458352]
[1717084497372,0.55,3778.7,3778.3,0.05458352]
[1717084497759,0.55,3778.7,3777.9,3.27528769]
[1717084497963,0.55,3778.7,3778.0,35.32752877]
[1717084498166,0.55,3778.7,3778.0,35.38242108]
[1717084499892,2.64648,3778.6,3778.0,35.38242108]
[1717084500110,2.64648,3778.6,3778.0,35.05489231]
[1717084500240,0.55,3778.5,3778.0,35.05489231]
[1717084503756,5.64623,3779.0,3778.0,35.05489231]
[1717084504765,2.64642,3778.7,3778.0,35.05489231]
[1717084504979,0.55,3778.6,3778.0,35.05489231]
[1717084505159,0.55,3778.6,3778.1,2.64560763]
[1717084505692,0.55,3778.6,3778.2,0.05499042]
[1717084506082,0.55,3778.6,3778.0,35.0]
[1717084506403,0.55,3778.6,3778.1,0.055042]
[1717084508111,2.64655,3778.5,3778.1,0.055042]
[1717084508404,1.269,3778.4,3778.1,0.055042]
[1717084509169,0.55,3778.4,3778.1,0.055042]
[1717084511616,2.64649,3778.6,3778.2,35.0]
[1717084511812,0.55,3778.5,3778.2,35.05498631]
[1717084515021,1.727,3779.6,3778.2,37.70059394]
[1717084515331,2.4944082,3779.5,3778.7,1.727]
[1717084515627,2.64527,3780.4,3778.8,37.64628]
[1717084515852,1.727,3780.7,3778.8,35.0546543]
[1717084515853,2.64575,3779.7,3778.8,35.0546543]
[1717084516010,1.727,3780.2,3778.8,35.0546543]
[1717084516011,0.5720257,3779.6,3778.8,35.0546543]
[1717084516206,1.727,3779.3,3778.8,0.0546543]
[1717084516452,0.57210916,3779.2,3778.8,0.0546543]
[1717084516653,0.22991092,3779.1,3778.2,35.0]
[1717084517052,0.55,3779.0,3778.3,0.05491214]
[1717084517223,2.64627,3778.9,3778.3,0.05491214]
[1717084517407,0.55,3778.8,3778.3,0.05491214]
[1717084517604,3.55,3778.8,3778.3,35.0]
[1717084517951,3.55,3778.8,3778.4,0.05486057]
[1717084521671,4.19261809,3778.8,3778.4,0.05486057]
[1717084523354,3.55,3778.8,3778.4,0.05486057]
[1717084523843,3.55,3778.8,3777.8,2.647]
[1717084524049,3.55,3778.8,3778.4,35.0]
[1717084524470,3.55,3778.8,3778.5,0.05479464]